fUST/lending_fUST_20251130
["ID","MTS","AMOUNT","RATE_DAILY","PERIOD"]
[395171065,1764508146166,-500.0,7.41e-05,2]
[395171066,1764508146185,-205.89989576,7.41e-05,2]
[395171067,1764508146206,-500.0,7.41e-05,2]
[395171068,1764508146227,-345.58108172,7.41e-05,2]
[395171069,1764508146247,-500.0,7.41e-05,2]
[395171070,1764508146267,-370.01717504,7.41e-05,2]
[395171071,1764508146287,-316.14576581,7.41e-05,2]
[395171072,1764508149079,-183.85423419,7.41e-05,2]
[395171073,1764508149100,-384.48214288,7.41e-05,2]
[395171074,1764508149123,-886.45549907,7.411e-05,2]
[395171075,1764508159103,-11426.57375916,7.411e-05,2]
[395171076,1764508165149,-12615.43307445,7.411e-05,2]
[395171077,1764508168077,-2715.120576,7.411e-05,2]
[395171078,1764508168104,-10658.20978187,7.411e-05,2]
[395171079,1764508176932,-225.07239136,7.411e-05,2]
[395171080,1764508180242,-402.65174632,7.411e-05,2]
[395171081,1764508181970,-318.72461227,7.411e-05,2]
[395171082,1764508182010,230.76697304,7.152e-05,2]
[395171083,1764508184325,-321.90067097,7.411e-05,2]
[395171084,1764508185826,-300.0,7.411e-05,2]
[395171085,1764508187969,-297.07510963,7.411e-05,2]
[395171086,1764508190124,-397.34825368,7.411e-05,2]
[395171087,1764508193773,-225.67166388,7.411e-05,2]
[395171088,1764508195640,-186.53025019,7.411e-05,2]
[395171089,1764508197612,-190.28111491,7.411e-05,2]
[395171090,1764508197657,2488.44444811,7.337e-05,2]
[395171091,1764508199163,-241.75515424,7.411e-05,2]
[395171092,1764508200858,-300.0,7.411e-05,2]
[395171093,1764508201581,300.0,7.41e-05,2]
[395171094,1764508202875,300.0,7.41e-05,2]
[395171095,1764508203425,-384.96124371,7.411e-05,2]
[395171096,1764508204307,300.0,7.41e-05,2]
[395171097,1764508205468,-235.57215521,7.411e-05,2]
[395171098,1764508205743,213.0,7.411e-05,2]
[395171099,1764508206953,-379.69304451,7.411e-05,2]
[395171100,1764508210090,1200.0,7.41e-05,2]
[395171101,1764508221179,4967.79857885,7.337e-05,2]
[395171102,1764508221203,741.95701756,7.337e-05,2]
[395171111,1764508231704,-10544.31043749,7.411e-05,2]
[395171112,1764508231763,-476.52,7.411e-05,2]
[395171113,1764508231775,-507.2010556,7.411e-05,2]
[395171114,1764508231786,-22273.03601813,7.411e-05,2]
[395171115,1764508231796,-250.0,7.504e-05,2]
[395171116,1764508231806,-590.3704993,7.51e-05,2]
[395171117,1764508231816,-360.21282197,7.521e-05,2]
[395171118,1764508231825,-600.0,7.659e-05,2]
[395171119,1764508231834,-300.0,7.66e-05,2]
[395171120,1764508231844,-300.0,7.66e-05,2]
[395171121,1764508231853,-300.0,7.66e-05,2]
[395171122,1764508231862,-300.0,7.66e-05,2]
[395171124,1764508231872,-300.0,7.66e-05,2]
[395171126,1764508231881,-300.0,7.66e-05,2]
[395171128,1764508231890,-300.0,7.66e-05,2]
[395171130,1764508231899,-300.0,7.66e-05,2]
[395171132,1764508231907,-300.0,7.66e-05,2]
[395171134,1764508231916,-300.0,7.66e-05,2]
[395171137,1764508231925,-300.0,7.66e-05,2]
[395171139,1764508231934,-300.0,7.66e-05,2]
[395171141,1764508231943,-300.0,7.66e-05,2]
[395171143,1764508231952,-300.0,7.66e-05,2]
[395171145,1764508231961,-300.0,7.66e-05,2]
[395171147,1764508231970,-174.61919141,7.694e-05,2]
[395171149,1764508231979,-478.75725327,7.694e-05,2]
[395171151,1764508231988,-231.28369723,7.694e-05,2]
[395171152,1764508231997,-761.85282662,7.852e-05,2]
[395171154,1764508232006,-250.988,7.924e-05,2]
[395171156,1764508232015,-631.0,8.132e-05,2]
[395171158,1764508232024,-2154.0,8.132e-05,2]
[395171160,1764508232033,-990.0,8.132e-05,2]
[395171162,1764508232042,-414.0,8.132e-05,2]
[395171164,1764508232053,-414.0,8.132e-05,2]
[395171166,1764508232062,-161.3585948,8.137e-05,2]
[395171167,1764508232071,-1680.0,8.151e-05,2]
[395171169,1764508232080,-420.0,8.151e-05,2]
[395171171,1764508232090,-1680.0,8.151e-05,2]
[395171173,1764508232101,-10998.11886958,8.156e-05,2]
[395171175,1764508232113,-1051.3955753,8.156e-05,2]
[395171210,1764508236218,212.1316441,7.292e-05,2]
[395171241,1764508237898,-1453.0,8.156e-05,2]
[395171249,1764508237955,-5200.89534372,8.156e-05,2]
[395171251,1764508237964,-150.0,8.213e-05,2]
[395171253,1764508237974,-184.15858109,8.241e-05,2]
[395171255,1764508237982,-181.08010149,8.242e-05,2]
[395171256,1764508237991,-259.14142945,8.242e-05,2]
[395171257,1764508238000,-239.84119403,8.242e-05,2]
[395171259,1764508238009,-539.5,8.267e-05,2]
[395171261,1764508238018,-107916.13304883,8.324e-05,2]
[395171264,1764508238033,-2725.35099309,8.324e-05,2]
[395171266,1764508238045,-304.75666044,8.324e-05,2]
[395171436,1764508240019,-181.8948833,8.131e-05,2]
[395171438,1764508240028,-218.30441858,8.219e-05,2]
[395171466,1764508240291,-2e-08,8.219e-05,2]
[395171493,1764508240540,10000.01,7.311e-05,2]
[395171497,1764508240564,10000.01,7.311e-05,2]
[395171500,1764508240589,10000.01,7.311e-05,2]
[395171504,1764508240616,10000.01,7.311e-05,2]
[395171508,1764508240643,10000.01,7.311e-05,2]
[395171512,1764508240668,10000.01,7.311e-05,2]
[395171515,1764508240693,10000.01,7.311e-05,2]
[395171519,1764508240718,10000.01,7.311e-05,2]
[395171523,1764508240742,10000.01,7.311e-05,2]
[395171526,1764508240767,9045.92133834,7.311e-05,2]
[395171530,1764508240791,10000.01,7.311e-05,2]
[395171534,1764508240818,10000.01,7.311e-05,2]
[395171537,1764508240847,10000.01,7.311e-05,2]
[395171541,1764508240874,10000.01,7.311e-05,2]
[395171545,1764508240899,10000.01,7.311e-05,2]
[395171549,1764508240923,10000.01,7.311e-05,2]
[395171552,1764508240949,10000.01,7.311e-05,2]
[395171556,1764508240973,10000.01,7.311e-05,2]
[395171559,1764508240999,10000.01,7.311e-05,2]
[395171755,1764508243145,-66.37372296,7.311e-05,2]
[395171769,1764508243964,-161263.43698314,7.311e-05,2]
[395171770,1764508243973,-347.10405683,8.219e-05,2]
[395171771,1764508243982,-21351.45896006,8.324e-05,2]
[395171774,1764508247501,-1275.46366761,7.238e-05,2]
[395171775,1764508247511,-8726.47487405,8.324e-05,2]
[395171776,1764508263046,245.37,1e-05,2]
[395171777,1764508263355,245.37,1e-05,2]
[395171778,1764508263700,245.37,1.1e-05,2]
[395171779,1764508264032,245.37,1.1e-05,2]
[395171780,1764508264719,245.37,1.1e-05,2]
[395171781,1764508264825,245.37,1.1e-05,2]
[395171782,1764508264987,245.37,1.2e-05,2]
[395171783,1764508265297,245.37,1.2e-05,2]
[395171784,1764508265607,245.37,1.2e-05,2]
[395171785,1764508265900,245.37,1.2e-05,2]
[395171786,1764508266220,245.37,1.3e-05,2]
[395171787,1764508266524,245.37,1.3e-05,2]
[395171788,1764508266832,245.37,1.3e-05,2]
[395171789,1764508267841,245.37,1.3e-05,2]
[395171790,1764508268165,44.82,1.4e-05,2]
[395171791,1764508268193,200.55,1.4e-05,2]
[395171792,1764508268460,245.37,1.4e-05,2]
[395171793,1764508268750,245.37,1.4e-05,2]
[395171794,1764508269111,245.37,1.4e-05,2]
[395171795,1764508269574,245.37,1.5e-05,2]
[395171796,1764508269939,245.37,1.5e-05,2]
[395171797,1764508270307,245.37,1.5e-05,2]
[395171798,1764508270610,245.37,1.5e-05,2]
[395171799,1764508270903,245.37,1.6e-05,2]
[395171800,1764508271210,245.37,1.6e-05,2]
[395171801,1764508271679,245.37,1.6e-05,2]
[395171802,1764508271828,245.37,1.6e-05,2]
[395171803,1764508272137,245.37,1.7e-05,2]
[395171804,1764508272430,245.37,1.7e-05,2]
[395171805,1764508272750,245.37,1.7e-05,2]
[395171806,1764508273046,245.37,1.7e-05,2]
[395171807,1764508274013,245.37,1.8e-05,2]
[395171808,1764508274362,245.37,1.8e-05,2]
[395171809,1764508274661,245.37,1.8e-05,2]
[395171810,1764508274967,245.37,1.8e-05,2]
[395171811,1764508275264,245.37,1.9e-05,2]
[395171812,1764508275603,245.37,1.9e-05,2]
[395171813,1764508275939,245.37,1.9e-05,2]
[395171814,1764508276235,245.37,1.9e-05,2]
[395171815,1764508276551,245.37,2e-05,2]
[395171816,1764508276875,245.37,2e-05,2]
[395171817,1764508277258,245.37,2e-05,2]
[395171818,1764508277684,245.37,2e-05,2]
[395171819,1764508278134,245.37,2.1e-05,2]
[395171820,1764508278424,245.37,2.1e-05,2]
[395171821,1764508278730,245.37,2.1e-05,2]
[395171822,1764508279060,245.37,2.1e-05,2]
[395171823,1764508279402,245.37,2.2e-05,2]
[395171824,1764508279910,245.37,2.2e-05,2]
[395171825,1764508280158,245.37,2.2e-05,2]
[395171826,1764508280751,245.37,2.3e-05,2]
[395171827,1764508322301,151.76,1e-05,2]
[395171828,1764508322604,151.76,1.2e-05,2]
[395171829,1764508322950,151.76,1.3e-05,2]
[395171830,1764508323204,151.76,1.5e-05,2]
[395171831,1764508323625,-300.0,7.409e-05,2]
[395171832,1764508323649,-25.36036989,7.41e-05,2]
[395171833,1764508325095,-150.02838508,7.41e-05,2]
[395171834,1764508325120,-182.68969587,7.41e-05,2]
[395171835,1764508327505,-317.31030413,7.41e-05,2]
[395171836,1764508327528,-489.94519943,7.41e-05,2]
[395171837,1764508328047,151.76,1.6e-05,2]
[395171838,1764508328374,151.76,1.8e-05,2]
[395171839,1764508328656,151.76,1.9e-05,2]
[395171840,1764508328954,151.76,2.1e-05,2]
[395171841,1764508329013,-10.05480057,7.41e-05,2]
[395171842,1764508329037,-330.66818686,7.41e-05,2]
[395171843,1764508329296,151.76,2.3e-05,2]
[395171844,1764508406011,869.0,0.00021,120]
[395171845,1764508450454,11151.36608394,0.0002,30]
[395171847,1764508462520,-455.61743007,7.165e-05,2]
[395171848,1764508466584,-217.0,7.165e-05,2]
[395171849,1764508477493,-251.2320947,7.093e-05,2]
[395171850,1764508833928,-505.0,6.813e-05,2]
[395171851,1764508836033,-211.72877927,6.813e-05,2]
[395171852,1764508838502,-231.28369723,6.813e-05,2]
[395171853,1764508838608,1116.90434901,6.745e-05,2]
[395171854,1764508840238,-289.23874662,6.813e-05,2]
[395171855,1764508843063,150.0,0.00010541,30]
[395171856,1764508843644,-318.13235162,6.813e-05,2]
[395171857,1764508845703,-162.02735811,6.813e-05,2]
[395171858,1764508876863,198.58287225,6.745e-05,2]
[395171859,1764508877722,-116.22219543,6.813e-05,2]
[395171860,1764508877744,-103.22358445,6.813e-05,2]
[395171861,1764508879698,-500.0,6.813e-05,2]
[395171862,1764508884667,822.82667158,6.745e-05,2]
[395171863,1764508884860,-300.0,6.813e-05,2]
[395171864,1764508886906,-261.86539424,6.813e-05,2]
[395171865,1764508893636,260.96127734,6.745e-05,2]
[395171866,1764508909140,260.96127734,6.745e-05,2]
[395171867,1764508916933,260.96127734,6.745e-05,2]
[395171868,1764508932678,260.96127734,6.745e-05,2]
[395171869,1764508941302,260.96127734,6.745e-05,2]
[395171870,1764508951801,157.010485,0.0002,30]
[395171871,1764508956472,260.96127734,6.745e-05,2]
[395171872,1764508964733,260.96127734,6.745e-05,2]
[395171873,1764508980029,260.96127734,6.745e-05,2]
[395171874,1764508987876,603.99590944,6.779e-05,2]
[395171875,1764508990633,260.96127734,6.813e-05,2]
[395171876,1764509003178,603.99590944,6.779e-05,2]
[395171877,1764509011436,603.99590944,6.779e-05,2]
[395171878,1764509026693,603.99590944,6.779e-05,2]
[395171879,1764509035085,603.99590944,6.779e-05,2]
[395171880,1764509050342,603.99590944,6.779e-05,2]
[395171881,1764509058504,603.99590944,6.779e-05,2]
[395171882,1764509064618,2938.62350133,6.747e-05,2]
[395171883,1764509064833,2572.45385525,6.31e-05,2]
[395171884,1764509067768,-323.07550397,6.31e-05,2]
[395171885,1764509070195,-423.61306788,6.31e-05,2]
[395171886,1764509071678,-573.10198341,6.31e-05,2]
[395171887,1764509073603,-206.85345083,6.309e-05,2]
[395171888,1764509073645,10000.01,6.246e-05,2]
[395171889,1764509073672,10000.01,6.246e-05,2]
[395171890,1764509079158,-504.32156658,6.246e-05,2]
[395171891,1764509080593,-4325.96758951,6.246e-05,2]
[395171892,1764509080882,-237.48507279,6.309e-05,2]
[395171893,1764509080907,-110.52347711,6.309e-05,2]
[395171894,1764509081423,1348.07482098,6.184e-05,2]
[395171895,1764509082854,-379.510698,6.184e-05,2]
[395171896,1764509085850,-243.20720629,6.184e-05,2]
[395171897,1764509087916,-307.95638937,6.184e-05,2]
[395171898,1764509090459,-740.60798859,6.184e-05,2]
[395171899,1764509094178,-313.3545522,6.184e-05,2]
[395171900,1764509096136,-325.30561919,6.184e-05,2]
[395171901,1764509098244,-219.16676745,6.122e-05,2]
[395171902,1764509100302,-556.17082852,6.122e-05,2]
[395171903,1764509101718,-217.91833811,6.122e-05,2]
[395171904,1764509101740,-175.22956857,6.184e-05,2]
[395171905,1764509103830,-492.72074632,6.184e-05,2]
[395171906,1764509103851,-54.02086527,6.308e-05,2]
[395171907,1764509105875,-245.97913473,6.308e-05,2]
[395171908,1764509105898,-187.75871626,6.308e-05,2]
[395171909,1764509112787,-112.24128374,6.308e-05,2]
[395171910,1764509112812,-246.13586035,6.308e-05,2]
[395171911,1764509115470,-53.86413965,6.308e-05,2]
[395171912,1764509115494,-232.39800936,6.308e-05,2]
[395171913,1764509119010,-67.60199064,6.308e-05,2]
[395171914,1764509119038,-258.08693729,6.309e-05,2]
[395171915,1764509120723,-131.3895856,6.309e-05,2]
[395171916,1764509120745,-25.79614277,6.309e-05,2]
[395171917,1764509123060,-190.49077399,6.309e-05,2]
[395171918,1764509125077,-194.02701653,6.309e-05,2]
[395171919,1764509127093,-89.68606671,6.309e-05,2]
[395171920,1764509127118,-205.22697952,6.309e-05,2]
[395171921,1764509127452,10000.01,6.245e-05,2]
[395171922,1764509128619,-186.46500784,6.245e-05,2]
[395171923,1764509132531,-319.07503242,6.245e-05,2]
[395171924,1764509133937,-434.95821368,6.245e-05,2]
[395171925,1764509135483,-368.61203452,6.245e-05,2]
[395171926,1764509137014,-248.05679264,6.183e-05,2]
[395171927,1764509138248,-51.94320736,6.183e-05,2]
[395171928,1764509139035,-300.0,6.245e-05,2]
[395171929,1764509141209,-254.36532895,6.245e-05,2]
[395171930,1764509142628,-156.46095011,6.245e-05,2]
[395171931,1764509153107,-283.32739701,6.183e-05,2]
[395171932,1764509155263,-435.90914949,6.183e-05,2]
[395171933,1764509157864,-222.09128577,6.183e-05,2]
[395171934,1764509159381,-214.89179956,6.183e-05,2]
[395171935,1764509161344,-303.50090823,6.121e-05,2]
[395171936,1764509162910,-470.02203301,6.121e-05,2]
[395171937,1764509164407,-259.24849006,6.121e-05,2]
[395171938,1764509166972,-181.2278405,6.121e-05,2]
[395171939,1764509169728,-222.27234796,6.121e-05,2]
[395171940,1764509171822,-308.973905,6.121e-05,2]
[395171941,1764509179074,-353.00620029,6.121e-05,2]
[395171942,1764509179097,-156.28406325,6.182e-05,2]
[395171943,1764509183606,-143.71593675,6.182e-05,2]
[395171944,1764509183632,-156.28406325,6.183e-05,2]
[395171945,1764509185071,-191.40036198,6.183e-05,2]
[395171946,1764509188727,-217.0488388,6.183e-05,2]
[395171947,1764509190710,-298.0,6.183e-05,2]
[395171948,1764509192790,-368.7721595,6.183e-05,2]
[395171949,1764509194462,-380.39404586,6.183e-05,2]
[395171950,1764509197667,-518.68666993,6.183e-05,2]
[395171951,1764509198919,-574.3275421,6.183e-05,2]
[395171952,1764509201331,-505.0,6.183e-05,2]
[395171953,1764509202979,-327.04137802,6.183e-05,2]
[395171954,1764509204695,-572.96145965,6.183e-05,2]
[395171955,1764509206728,-428.76861776,6.183e-05,2]
[395171956,1764509208250,-595.75679173,6.183e-05,2]
[395171958,1764509212784,-323.96751421,6.183e-05,2]
[395171959,1764509216047,-276.03248579,6.183e-05,2]
[395171960,1764509322087,2547.3895776,6.022e-05,2]
[395171961,1764509350363,-2547.3895776,5.962e-05,2]
[395171962,1764509350384,-2547.3895776,6.022e-05,2]
[395171963,1764509350403,-1200.0,6.182e-05,2]
[395171964,1764509350422,-651.06996806,6.214e-05,2]
[395171965,1764509350441,-361.41562529,6.243e-05,2]
[395171966,1764509350459,-500.0,6.243e-05,2]
[395171967,1764509350479,-500.0,6.243e-05,2]
[395171968,1764509350499,-500.0,6.243e-05,2]
[395171969,1764509350524,-500.0,6.243e-05,2]
[395171970,1764509350544,-500.0,6.243e-05,2]
[395171971,1764509350569,-500.0,6.243e-05,2]
[395171972,1764509350589,-500.0,6.243e-05,2]
[395171973,1764509350609,-500.0,6.243e-05,2]
[395171974,1764509350631,-500.0,6.243e-05,2]
[395171975,1764509350650,-500.0,6.243e-05,2]
[395171976,1764509350670,-500.0,6.243e-05,2]
[395171977,1764509350691,-500.0,6.243e-05,2]
[395171978,1764509350710,-559.17972848,6.243e-05,2]
[395171979,1764509350729,-500.0,6.243e-05,2]
[395171980,1764509350748,-500.0,6.243e-05,2]
[395171981,1764509350769,-239.70417027,6.243e-05,2]
[395171982,1764509350788,-500.0,6.243e-05,2]
[395171983,1764509350806,-500.0,6.243e-05,2]
[395171984,1764509350827,-500.0,6.243e-05,2]
[395171985,1764509350846,-500.0,6.243e-05,2]
[395171986,1764509350866,-500.0,6.243e-05,2]
[395171987,1764509350886,-500.0,6.243e-05,2]
[395171988,1764509350908,-500.0,6.243e-05,2]
[395171989,1764509350928,-221.80830001,6.243e-05,2]
[395171990,1764509350948,-500.0,6.243e-05,2]
[395171991,1764509350966,-361.43682238,6.243e-05,2]
[395171992,1764509350986,-500.0,6.243e-05,2]
[395171993,1764509351005,-500.0,6.243e-05,2]
[395171994,1764509351023,-500.0,6.243e-05,2]
[395171995,1764509351044,-500.0,6.243e-05,2]
[395171996,1764509351064,-500.0,6.243e-05,2]
[395171997,1764509351083,-500.0,6.243e-05,2]
[395171998,1764509351104,-500.0,6.243e-05,2]
[395171999,1764509351126,-500.0,6.243e-05,2]
[395172000,1764509351145,-500.0,6.243e-05,2]
[395172001,1764509351166,-500.0,6.243e-05,2]
[395172002,1764509351188,-500.0,6.243e-05,2]
[395172003,1764509351209,-500.0,6.243e-05,2]
[395172004,1764509351230,-500.0,6.243e-05,2]
[395172005,1764509351251,-500.0,6.243e-05,2]
[395172006,1764509351271,-500.0,6.243e-05,2]
[395172007,1764509351293,-500.0,6.243e-05,2]
[395172008,1764509351316,-500.0,6.243e-05,2]
[395172009,1764509351339,-500.0,6.243e-05,2]
[395172010,1764509351360,-500.0,6.243e-05,2]
[395172011,1764509351382,-500.0,6.243e-05,2]
[395172012,1764509351571,-500.0,6.243e-05,2]
[395172013,1764509351593,-500.0,6.243e-05,2]
[395172014,1764509351613,-500.0,6.243e-05,2]
[395172015,1764509351635,-500.0,6.243e-05,2]
[395172016,1764509351654,-500.0,6.243e-05,2]
[395172017,1764509351678,-500.0,6.243e-05,2]
[395172018,1764509351701,-500.0,6.243e-05,2]
[395172019,1764509351730,-500.0,6.243e-05,2]
[395172020,1764509351755,-500.0,6.243e-05,2]
[395172021,1764509351776,-500.0,6.243e-05,2]
[395172022,1764509351796,-500.0,6.243e-05,2]
[395172023,1764509351816,-500.0,6.243e-05,2]
[395172024,1764509351837,-500.0,6.243e-05,2]
[395172025,1764509351857,-500.0,6.243e-05,2]
[395172026,1764509351886,-500.0,6.243e-05,2]
[395172027,1764509351906,-500.0,6.243e-05,2]
[395172028,1764509351927,-500.0,6.243e-05,2]
[395172029,1764509351948,-500.0,6.243e-05,2]
[395172030,1764509351967,-500.0,6.243e-05,2]
[395172031,1764509351988,-500.0,6.243e-05,2]
[395172032,1764509352008,-500.0,6.243e-05,2]
[395172033,1764509352029,-500.0,6.243e-05,2]
[395172034,1764509352050,-507.92492732,6.243e-05,2]
[395172035,1764509352070,-500.0,6.243e-05,2]
[395172036,1764509352090,-500.0,6.243e-05,2]
[395172037,1764509352111,-500.0,6.243e-05,2]
[395172038,1764509352132,-500.0,6.243e-05,2]
[395172039,1764509352152,-500.0,6.243e-05,2]
[395172040,1764509352173,-500.0,6.243e-05,2]
[395172041,1764509352193,-500.0,6.243e-05,2]
[395172042,1764509352215,-500.0,6.243e-05,2]
[395172043,1764509352235,-500.0,6.243e-05,2]
[395172044,1764509352255,-500.0,6.243e-05,2]
[395172045,1764509352276,-500.0,6.243e-05,2]
[395172046,1764509352296,-500.0,6.243e-05,2]
[395172047,1764509352316,-500.0,6.243e-05,2]
[395172048,1764509352337,-500.0,6.243e-05,2]
[395172049,1764509352356,-500.0,6.243e-05,2]
[395172050,1764509352376,-500.0,6.243e-05,2]
[395172051,1764509352397,-500.0,6.243e-05,2]
[395172052,1764509352416,-500.0,6.243e-05,2]
[395172053,1764509352436,-485.73757827,6.243e-05,2]
[395172054,1764509352454,-500.0,6.243e-05,2]
[395172055,1764509352474,-595.68969663,6.243e-05,2]
[395172056,1764509352495,-591.50050239,6.243e-05,2]
[395172057,1764509352514,-595.68969663,6.243e-05,2]
[395172058,1764509352533,-500.0,6.243e-05,2]
[395172059,1764509352555,-591.50050239,6.243e-05,2]
[395172060,1764509352577,-595.68969663,6.243e-05,2]
[395172061,1764509352600,-591.50050239,6.243e-05,2]
[395172062,1764509352620,-595.68969663,6.243e-05,2]
[395172063,1764509352640,-528.13314708,6.243e-05,2]
[395172064,1764509352660,-591.50050239,6.243e-05,2]
[395172065,1764509352678,-500.0,6.243e-05,2]
[395172066,1764509352699,-595.68969663,6.243e-05,2]
[395172067,1764509352720,-591.50050239,6.243e-05,2]
[395172068,1764509352742,-528.13314708,6.243e-05,2]
[395172069,1764509352762,-595.68969663,6.243e-05,2]
[395172070,1764509352780,-201.63265429,6.243e-05,2]
[395172071,1764509352800,-591.50050239,6.243e-05,2]
[395172072,1764509352820,-528.13314708,6.243e-05,2]
[395172073,1764509352844,-595.68969663,6.243e-05,2]
[395172074,1764509352864,-595.68969663,6.243e-05,2]
[395172075,1764509352883,-528.13314708,6.243e-05,2]
[395172076,1764509352903,-591.50050239,6.243e-05,2]
[395172077,1764509352923,-595.68969663,6.243e-05,2]
[395172078,1764509352943,-528.13314708,6.243e-05,2]
[395172079,1764509352964,-591.50050239,6.243e-05,2]
[395172080,1764509352985,-195.55284624,6.243e-05,2]
[395172081,1764509357110,-395.94765615,6.243e-05,2]
[395172082,1764509357131,-528.13314708,6.243e-05,2]
[395172083,1764509357293,-591.50050239,6.243e-05,2]
[395172084,1764509357318,-595.68969663,6.243e-05,2]
[395172085,1764509357341,-528.13314708,6.243e-05,2]
[395172086,1764509357364,-591.50050239,6.243e-05,2]
[395172087,1764509357386,-591.50050239,6.243e-05,2]
[395172088,1764509357408,-528.13314708,6.243e-05,2]
[395172089,1764509357429,-595.68969663,6.243e-05,2]
[395172090,1764509357451,-595.68969663,6.243e-05,2]
[395172091,1764509357473,-591.50050239,6.243e-05,2]
[395172092,1764509357495,-528.13314708,6.243e-05,2]
[395172093,1764509357516,-595.68969663,6.243e-05,2]
[395172094,1764509357538,-591.50050239,6.243e-05,2]
[395172095,1764509357562,-528.13314708,6.243e-05,2]
[395172096,1764509357583,-595.68969663,6.243e-05,2]
[395172097,1764509357604,-591.50050239,6.243e-05,2]
[395172098,1764509357626,-528.13314708,6.243e-05,2]
[395172099,1764509357647,-595.68969663,6.243e-05,2]
[395172100,1764509357668,-591.50050239,6.243e-05,2]
[395172101,1764509357689,-528.13314708,6.243e-05,2]
[395172102,1764509357711,-213.84593456,6.243e-05,2]
[395172103,1764509374852,-223.40961363,6.119e-05,2]
[395172104,1764509376892,-249.95858535,6.119e-05,2]
[395172111,1764509406969,-234.70562596,6.118e-05,2]
[395172112,1764509407764,169.786493,2.715e-05,2]
[395172113,1764509407826,169.786493,4.072e-05,2]
[395172114,1764509408007,169.786493,5.429e-05,2]
[395172115,1764509410089,-65.29437404,6.118e-05,2]
[395172116,1764509410110,-134.01345148,6.118e-05,2]
[395172117,1764509424797,5049.33443762,6.018e-05,2]
[395172252,1764509438342,-165.98654852,6.118e-05,2]
[395172254,1764509438353,-300.0,6.118e-05,2]
[395172256,1764509438363,-204.0,6.118e-05,2]
[395172258,1764509438372,-1200.0,6.118e-05,2]
[395172260,1764509438384,-252.9909377,6.118e-05,2]
[395172262,1764509438393,-395.46441428,6.118e-05,2]
[395172264,1764509438402,-602.60455048,6.118e-05,2]
[395172266,1764509438411,-206.8263136,6.118e-05,2]
[395172268,1764509438421,-500.0,6.118e-05,2]
[395172270,1764509438429,-500.0,6.118e-05,2]
[395172272,1764509438439,-500.0,6.118e-05,2]
[395172274,1764509438448,-500.0,6.118e-05,2]
[395172276,1764509438457,-500.0,6.118e-05,2]
[395172278,1764509438466,-500.0,6.118e-05,2]
[395172280,1764509438476,-500.0,6.118e-05,2]
[395172282,1764509438486,-500.0,6.118e-05,2]
[395172284,1764509438495,-454.18214222,6.118e-05,2]
[395172286,1764509438505,-500.0,6.118e-05,2]
[395172288,1764509438514,-500.0,6.118e-05,2]
[395172290,1764509438523,-500.0,6.118e-05,2]
[395172292,1764509438532,-500.0,6.118e-05,2]
[395172294,1764509438541,-500.0,6.118e-05,2]
[395172296,1764509438550,-500.0,6.118e-05,2]
[395172298,1764509438560,-500.0,6.118e-05,2]
[395172300,1764509438568,-500.0,6.118e-05,2]
[395172302,1764509438577,-500.0,6.118e-05,2]
[395172304,1764509438588,-500.0,6.118e-05,2]
[395172306,1764509438600,-500.0,6.118e-05,2]
[395172308,1764509438609,-500.0,6.118e-05,2]
[395172310,1764509438619,-500.0,6.118e-05,2]
[395172312,1764509438628,-500.0,6.118e-05,2]
[395172314,1764509438637,-500.0,6.118e-05,2]
[395172316,1764509438646,-114.72730704,6.118e-05,2]
[395172376,1764509439224,1163.0690136,5.568e-05,2]
[395172457,1764509441220,-2e-08,6.118e-05,2]
[395172458,1764509441232,-385.27269294,6.118e-05,2]
[395172459,1764509441241,-239.47730706,6.118e-05,2]
[395172493,1764509446130,-260.52269294,6.118e-05,2]
[395172494,1764509446139,-500.0,6.118e-05,2]
[395172495,1764509446149,-500.0,6.118e-05,2]
[395172496,1764509446159,-139.39544047,6.118e-05,2]
[395172504,1764509463706,-445.1969065,6.057e-05,2]
[395172505,1764509463728,-300.0,6.117e-05,2]
[395172506,1764509463752,-360.60455953,6.118e-05,2]
[395172507,1764509463774,-500.0,6.118e-05,2]
[395172508,1764509463798,-500.0,6.118e-05,2]
[395172509,1764509463821,-500.0,6.118e-05,2]
[395172510,1764509463844,-500.0,6.118e-05,2]
[395172511,1764509463867,-604.01004591,6.118e-05,2]